fUSD/lending_fUSD_20260612
["ID","MTS","AMOUNT","RATE_DAILY","PERIOD"]
[424904539,1781260255000,-1000.0,0.00022938,2]
[424904549,1781260255000,-150.0,0.00023014,2]
[424904547,1781260255000,-1403.0,0.00023,2]
[424904553,1781260255000,-2711.94,0.000232,14]
[424904575,1781260255000,-851.4,0.00024324,2]
[424904574,1781260255000,-289.40693849,0.00024238,2]
[424904573,1781260255000,-150.0,0.00024164,2]
[424904571,1781260255000,-215.15259985,0.00024145,2]
[424904572,1781260255000,-2682.57183977,0.00024145,2]
[424904570,1781260255000,-347.0,0.00024,2]
[424904569,1781260255000,-1403.0,0.00024,2]
[424904567,1781260255000,-167.0,0.00024,2]
[424904566,1781260255000,-339.0,0.00024,2]
[424904568,1781260255000,-182.0,0.00024,2]
[424904565,1781260255000,-237.0,0.00024,2]
[424904563,1781260255000,-500.0,0.00024,2]
[424904554,1781260255000,-2197.77,0.00023367,7]
[424904564,1781260255000,-2317.0,0.00024,2]
[424904556,1781260255000,-396.478527,0.00023378,7]
[424904557,1781260255000,-152.25,0.00023425,2]
[424904558,1781260255000,-215.15259985,0.00023597,2]
[424904555,1781260255000,-9999.99,0.00023368,2]
[424904560,1781260255000,-4478.505508,0.00024,2]
[424904561,1781260255000,-1203.0,0.00024,7]
[424904562,1781260255000,-239.0,0.00024,2]
[424904559,1781260255000,-2586.85809042,0.00023597,2]
[424904552,1781260255000,-2494.55939288,0.00023049,2]
[424904583,1781260256000,-151.0,0.00024658,2]
[424904578,1781260256000,-1000.0,0.00024658,2]
[424904576,1781260256000,-3009.32,0.00024658,2]
[424904577,1781260256000,-3009.32,0.00024658,2]
[424904579,1781260256000,-172.14,0.00024658,2]
[424904581,1781260256000,-151.0,0.00024658,2]
[424904580,1781260256000,-151.0,0.00024658,2]
[424904584,1781260256000,-151.0,0.00024658,2]
[424904585,1781260256000,-215.15259985,0.00024693,2]
[424904586,1781260256000,-2781.82699784,0.00024693,2]
[424904588,1781260256000,-300.0,0.00024943,10]
[424904589,1781260256000,-353428.03996965,0.00024944,2]
[424904587,1781260256000,-845.94,0.00024753,7]
[424904590,1781260256000,-444.74809863,0.00024944,2]
[424904591,1781260256000,-8486.96239645,0.00024944,2]
[424904582,1781260256000,-151.0,0.00024658,2]
[424904606,1781260257000,-1061.43369958,0.00013699,2]
[424904600,1781260257000,-1061.43369958,0.00013699,2]
[424904607,1781260257000,-1061.43369958,0.00013699,2]
[424904610,1781260257000,-1061.43369958,0.00013699,2]
[424904613,1781260257000,-1061.43369958,0.00013699,2]
[424904598,1781260257000,-1061.43369958,0.00013699,2]
[424904612,1781260257000,-1061.43369958,0.00013699,2]
[424904608,1781260257000,-1061.43369958,0.00013699,2]
[424904597,1781260257000,-1061.43369958,0.00013699,2]
[424904605,1781260257000,-1061.43369958,0.00013699,2]
[424904599,1781260257000,-1061.43369958,0.00013699,2]
[424904609,1781260257000,-1061.43369958,0.00013699,2]
[424904603,1781260257000,-1061.43369958,0.00013699,2]
[424904602,1781260257000,-1061.43369958,0.00013699,2]
[424904596,1781260257000,-1061.43369958,0.00013699,2]
[424904594,1781260257000,-2.46100542,0.00012398,2]
[424904595,1781260257000,-1061.43369958,0.00013699,2]
[424904593,1781260257000,-148.53899458,0.00012398,2]
[424904592,1781260257000,-153.40542187,0.00011853,2]
[424904601,1781260257000,-1061.43369958,0.00013699,2]
[424904611,1781260257000,-1061.43369958,0.00013699,2]
[424904604,1781260257000,-1061.43369958,0.00013699,2]
[424904617,1781260257000,-1061.43369958,0.00013699,2]
[424904614,1781260257000,-1061.43369958,0.00013699,2]
[424904635,1781260257000,-505.0,0.00024703,8]
[424904632,1781260257000,-505.0,0.00022189,5]
[424904630,1781260257000,-505.0,0.00021351,5]
[424904629,1781260257000,-614.0,0.00020584,2]
[424904634,1781260257000,-505.0,0.00023865,7]
[424904633,1781260257000,-505.0,0.00023027,6]
[424904628,1781260257000,-505.0,0.00020514,4]
[424904627,1781260257000,-505.0,0.00019676,3]
[424904626,1781260257000,-3556.0,0.00019189,2]
[424904631,1781260257000,-3556.0,0.00022189,2]
[424904624,1781260257000,-505.0,0.00018,2]
[424904625,1781260257000,-505.0,0.00018838,2]
[424904616,1781260257000,-1061.43369958,0.00013699,2]
[424904618,1781260257000,-1061.43369958,0.00013699,2]
[424904619,1781260257000,-1061.43369958,0.00013699,2]
[424904615,1781260257000,-1061.43369958,0.00013699,2]
[424904621,1781260257000,-1061.43369958,0.00013699,2]
[424904622,1781260257000,-1061.43369958,0.00013699,2]
[424904623,1781260257000,-3562.865,0.00016189,2]
[424904620,1781260257000,-1061.43369958,0.00013699,2]
[424904655,1781260258000,-46410.43024494,0.00025203,2]
[424904664,1781260258000,-19762.59,0.00025786,2]
[424904656,1781260258000,-300.0,0.0002524,10]
[424904657,1781260258000,-188099.9471619,0.00025241,2]
[424904658,1781260258000,-215.15259985,0.00025241,2]
[424904660,1781260258000,-150.0,0.00025373,2]
[424904663,1781260258000,-1921.35,0.00025786,2]
[424904669,1781260258000,-2991.49051684,0.00025789,2]
[424904659,1781260258000,-2884.75459676,0.00025241,2]
[424904670,1781260258000,-150.0,0.00025869,2]
[424904665,1781260258000,-594.27,0.00025786,2]
[424904671,1781260258000,-150.0,0.00025869,2]
[424904668,1781260258000,-215.15259985,0.00025789,2]
[424904654,1781260258000,-300.0,0.00025202,10]
[424904661,1781260258000,-505.0,0.00025541,9]
[424904652,1781260258000,-1227.0,0.00025189,2]
[424904642,1781260258000,-167.0,0.00025,2]
[424904653,1781260258000,-3644.0,0.00025189,2]
[424904636,1781260258000,-228723.29232237,0.00024944,2]
[424904637,1781260258000,-183.92,0.00025,7]
[424904638,1781260258000,-240.29885595,0.00025,2]
[424904641,1781260258000,-352.0,0.00025,2]
[424904640,1781260258000,-237.61590978,0.00025,2]
[424904639,1781260258000,-2330.56207833,0.00025,2]
[424904672,1781260258000,-150.0,0.00025869,2]
[424904645,1781260258000,-154.74,0.00025,2]
[424904646,1781260258000,-154.74,0.00025,2]
[424904643,1781260258000,-198.36709755,0.00025,2]
[424904648,1781260258000,-2197.77,0.0002505,7]
[424904644,1781260258000,-1405.0,0.00025,2]
[424904649,1781260258000,-342.635827,0.00025064,7]
[424904647,1781260258000,-349.96556163,0.00025,2]
[424904650,1781260258000,-382.0,0.00025189,2]
[424904651,1781260258000,-1275.0,0.00025189,2]
[424904667,1781260258000,-151.0,0.00025787,2]
[424904662,1781260258000,-509.1969552,0.00025617,30]
[424904674,1781260258000,-1002.55525759,0.000259,7]
[424904692,1781260258000,-5271.0,0.00026961,10]
[424904690,1781260258000,-2197.77,0.00026733,7]
[424904695,1781260258000,-505.0,0.00027216,10]
[424904696,1781260258000,-1500.0,0.00027397,2]
[424904697,1781260258000,-151.0,0.00027397,2]
[424904699,1781260258000,-151.0,0.00027397,2]
[424904698,1781260258000,-151.0,0.00027397,2]
[424904688,1781260258000,-5000.0,0.00026666,2]
[424904700,1781260258000,-305.236941,0.00027397,2]
[424904703,1781260258000,-305.236941,0.00027397,2]
[424904702,1781260258000,-305.236941,0.00027397,2]
[424904704,1781260258000,-3400.01,0.00027397,10]
[424904705,1781260258000,-215.15259985,0.00027433,2]
[424904706,1781260258000,-163.03644051,0.00027466,7]
[424904708,1781260258000,-845.94,0.00027506,7]
[424904666,1781260258000,-1237.51,0.00025786,2]
[424904701,1781260258000,-305.236941,0.00027397,2]
[424904687,1781260258000,-5000.0,0.00026666,2]
[424904707,1781260258000,-158.46254774,0.00027466,7]
[424904693,1781260258000,-183.92,0.00027,7]
[424904691,1781260258000,-215.15259985,0.00026885,2]
[424904675,1781260258000,-1002.55525759,0.000259,7]
[424904676,1781260258000,-1002.55525759,0.000259,7]
[424904677,1781260258000,-438.01,0.00026027,7]
[424904678,1781260258000,-374.55,0.00026027,7]
[424904679,1781260258000,-1504.66,0.00026027,2]
[424904681,1781260258000,-851.4,0.00026296,2]
[424904673,1781260258000,-500.0,0.000259,9]
[424904686,1781260258000,-5000.0,0.00026666,2]
[424904680,1781260258000,-513.335313,0.00026208,120]
[424904685,1781260258000,-5000.0,0.00026666,2]
[424904683,1781260258000,-505.0,0.00026378,9]
[424904684,1781260258000,-150.0,0.00026641,2]
[424904689,1781260258000,-5000.0,0.00026666,2]
[424904694,1781260258000,-10272.04265598,0.00027167,2]
[424904682,1781260258000,-215.15259985,0.00026337,2]
[424904729,1781260259000,-182.88,0.00027702,30]
[424904730,1781260259000,-182.87,0.00027702,30]
[424904732,1781260259000,-1093.12,0.00027732,2]
[424904731,1781260259000,-184.52,0.00027711,7]
[424904733,1781260259000,-2146.78,0.00027732,2]
[424904734,1781260259000,-186.0,0.00027732,2]
[424904736,1781260259000,-182.87,0.00027733,2]
[424904738,1781260259000,-151.0,0.00027754,7]
[424904735,1781260259000,-182.88,0.00027733,2]
[424904740,1781260259000,-239.216309,0.00027754,7]
[424904739,1781260259000,-151.0,0.00027754,7]
[424904741,1781260259000,-151.0,0.00027754,7]
[424904743,1781260259000,-151.0,0.00027754,7]
[424904728,1781260259000,-182.87,0.00027672,7]
[424904747,1781260259000,-151.0,0.00027754,7]
[424904737,1781260259000,-144851.9396278,0.00027754,2]
[424904727,1781260259000,-182.88,0.00027672,7]
[424904717,1781260259000,-184.52,0.0002755,30]
[424904725,1781260259000,-182.88,0.00027641,2]
[424904745,1781260259000,-267.380627,0.00027754,7]
[424904709,1781260259000,-167.41763416,0.00027546,7]
[424904710,1781260259000,-157.01740493,0.00027546,7]
[424904712,1781260259000,-81986.71741548,0.0002755,2]
[424904714,1781260259000,-2146.78,0.0002755,30]
[424904711,1781260259000,-191.36168684,0.00027546,7]
[424904713,1781260259000,-1093.12,0.0002755,30]
[424904726,1781260259000,-182.87,0.00027641,2]
[424904716,1781260259000,-182.87,0.0002755,2]
[424904718,1781260259000,-1093.12,0.00027572,7]
[424904715,1781260259000,-182.88,0.0002755,2]
[424904721,1781260259000,-182.87,0.0002758,7]
[424904720,1781260259000,-182.88,0.0002758,7]
[424904722,1781260259000,-182.88,0.00027611,30]
[424904723,1781260259000,-182.87,0.00027611,30]
[424904724,1781260259000,-200.0,0.00027619,2]
[424904719,1781260259000,-2146.78,0.00027572,7]
[424904744,1781260259000,-151.0,0.00027754,7]
[424904767,1781260259000,-150.0,0.00027973,2]
[424904742,1781260259000,-244.559207,0.00027754,7]
[424904782,1781260259000,-182.88,0.00028099,2]
[424904746,1781260259000,-151.0,0.00027754,7]
[424904772,1781260259000,-182.87,0.00028007,2]
[424904770,1781260259000,-215.15259985,0.00027981,2]
[424904771,1781260259000,-182.88,0.00028007,2]
[424904775,1781260259000,-182.87,0.00028038,7]
[424904776,1781260259000,-7907.0,0.0002804,10]
[424904769,1781260259000,-182.87,0.00027977,30]
[424904774,1781260259000,-182.88,0.00028038,7]
[424904783,1781260259000,-182.87,0.00028099,2]
[424904784,1781260259000,-183.06,0.0002813,7]
[424904777,1781260259000,-1093.12,0.00028053,7]
[424904778,1781260259000,-2146.78,0.00028053,7]
[424904779,1781260259000,-182.88,0.00028068,30]
[424904781,1781260259000,-459.64961024,0.00028079,2]
[424904780,1781260259000,-182.87,0.00028068,30]
[424904773,1781260259000,-184.52,0.00028033,30]
[424904766,1781260259000,-182.87,0.00027946,7]
[424904768,1781260259000,-182.88,0.00027977,30]
[424904764,1781260259000,-332.11,0.00027932,2]
[424904748,1781260259000,-182.88,0.00027763,7]
[424904751,1781260259000,-182.87,0.00027794,30]
[424904750,1781260259000,-182.88,0.00027794,30]
[424904755,1781260259000,-182.88,0.00027855,7]
[424904761,1781260259000,-2146.78,0.00027892,30]
[424904753,1781260259000,-182.87,0.00027824,2]
[424904749,1781260259000,-182.87,0.00027763,7]
[424904754,1781260259000,-9506.9912588,0.00027834,2]
[424904752,1781260259000,-182.88,0.00027824,2]
[424904758,1781260259000,-182.88,0.00027885,30]
[424904757,1781260259000,-184.52,0.00027872,2]
[424904759,1781260259000,-182.87,0.00027885,30]
[424904760,1781260259000,-1093.12,0.00027892,30]
[424904762,1781260259000,-182.88,0.00027916,2]
[424904763,1781260259000,-182.87,0.00027916,2]
[424904765,1781260259000,-182.88,0.00027946,7]
[424904756,1781260259000,-182.87,0.00027855,7]
[424904785,1781260260000,-182.98,0.0002813,7]
[424904794,1781260260000,-500.0,0.00028256,60]
[424904787,1781260260000,-1275.0,0.00028189,2]
[424904793,1781260260000,-500.0,0.00028256,60]
[424904795,1781260260000,-500.0,0.00028256,60]
[424904786,1781260260000,-382.0,0.00028189,2]
[424904791,1781260260000,-1093.12,0.00028213,2]
[424904788,1781260260000,-1227.0,0.00028189,2]
[424904792,1781260260000,-2146.78,0.00028213,2]
[424904790,1781260260000,-184.52,0.00028194,7]
[424904797,1781260260000,-184.53,0.00028355,2]
[424904800,1781260260000,-2146.78,0.00028373,30]
[424904801,1781260260000,-10005.6462,0.00028405,2]
[424904798,1781260260000,-184.52,0.00028355,2]
[424904796,1781260260000,-851.4,0.00028267,2]
[424904799,1781260260000,-1093.12,0.00028373,30]
[424904802,1781260260000,-13487.22778886,0.00028405,2]
[424904789,1781260260000,-3644.0,0.00028189,2]
[424904822,1781260261000,-197.63365224,0.00028763,7]
[424904824,1781260261000,-1504.66,0.00028767,2]
[424904829,1781260261000,-5815.8450308,0.000288,2]
[424904830,1781260261000,-5815.8450308,0.000288,2]
[424904823,1781260261000,-1504.66,0.00028767,2]
[424904825,1781260261000,-202.68496916,0.00028786,7]
[424904828,1781260261000,-5815.84503081,0.000288,2]
[424904827,1781260261000,-220.82675499,0.00028786,7]
[424904826,1781260261000,-245.56722711,0.00028786,7]
[424904820,1781260261000,-249.75777403,0.00028763,2]
[424904832,1781260261000,-19055.94727543,0.000288,2]
[424904834,1781260261000,-305.236941,0.000288,7]
[424904833,1781260261000,-19055.94727543,0.000288,2]
[424904831,1781260261000,-19055.94727544,0.000288,2]
[424904818,1781260261000,-208.73958653,0.00028763,7]
[424904815,1781260261000,-188099.9471619,0.0002868,2]
[424904821,1781260261000,-316.92509547,0.00028763,7]
[424904805,1781260261000,-352.56111881,0.00028463,4]
[424904803,1781260261000,-8844.02947526,0.00028405,2]
[424904807,1781260261000,-184.52,0.00028516,30]
[424904806,1781260261000,-183.92,0.000285,7]
[424904811,1781260261000,-2146.78,0.00028533,7]
[424904835,1781260261000,-305.236941,0.000288,7]
[424904819,1781260261000,-326.07288101,0.00028763,7]
[424904810,1781260261000,-1093.12,0.00028533,7]
[424904808,1781260261000,-151.0,0.00028526,2]
[424904812,1781260261000,-248.84081477,0.00028624,2]
[424904814,1781260261000,-184.52,0.00028677,7]
[424904813,1781260261000,-350.0,0.00028654,2]
[424904817,1781260261000,-2146.78,0.00028693,2]
[424904816,1781260261000,-1093.12,0.00028693,2]
[424904809,1781260261000,-215.15260004,0.00028529,2]
[424904840,1781260261000,-210.342534,0.000288,7]
[424904804,1781260261000,-2197.77,0.00028417,7]
[424904837,1781260261000,-305.236941,0.000288,7]
[424904861,1781260261000,-500.0,0.000289,7]
[424904858,1781260261000,-500.0,0.000289,7]
[424904862,1781260261000,-500.0,0.000289,7]
[424904860,1781260261000,-500.0,0.000289,7]
[424904863,1781260261000,-500.0,0.000289,7]
[424904864,1781260261000,-500.0,0.000289,7]
[424904855,1781260261000,-500.0,0.000289,7]
[424904859,1781260261000,-500.0,0.000289,7]
[424904866,1781260261000,-500.0,0.000289,7]
[424904867,1781260261000,-500.0,0.000289,7]
[424904869,1781260261000,-500.0,0.000289,7]
[424904870,1781260261000,-500.0,0.000289,7]
[424904871,1781260261000,-500.0,0.000289,7]
[424904839,1781260261000,-210.342534,0.000288,7]
[424904865,1781260261000,-500.0,0.000289,7]
[424904857,1781260261000,-500.0,0.000289,7]
[424904868,1781260261000,-500.0,0.000289,7]
[424904850,1781260261000,-500.0,0.000289,7]
[424904856,1781260261000,-500.0,0.000289,7]
[424904836,1781260261000,-305.236941,0.000288,7]
[424904842,1781260261000,-202.0,0.0002882,30]
[424904841,1781260261000,-210.342534,0.000288,7]
[424904843,1781260261000,-184.52,0.00028838,2]
[424904848,1781260261000,-1093.16,0.00028855,30]
[424904845,1781260261000,-314.03480986,0.00028845,7]
[424904838,1781260261000,-210.342534,0.000288,7]
[424904844,1781260261000,-334.83526833,0.00028845,7]
[424904851,1781260261000,-500.0,0.000289,7]
[424904849,1781260261000,-500.0,0.000289,7]
[424904847,1781260261000,-2146.8,0.00028855,30]
[424904852,1781260261000,-500.0,0.000289,7]
[424904853,1781260261000,-500.0,0.000289,7]
[424904846,1781260261000,-382.72337369,0.00028845,7]
[424904854,1781260261000,-500.0,0.000289,7]
[424904907,1781260262000,-500.0,0.000289,7]
[424904908,1781260262000,-500.0,0.000289,7]
[424904905,1781260262000,-500.0,0.000289,7]
[424904906,1781260262000,-500.0,0.000289,7]
[424904901,1781260262000,-500.0,0.000289,7]
[424904903,1781260262000,-500.0,0.000289,7]
[424904900,1781260262000,-500.0,0.000289,7]
[424904910,1781260262000,-500.0,0.000289,7]
[424904902,1781260262000,-500.0,0.000289,7]
[424904904,1781260262000,-500.0,0.000289,7]
[424904909,1781260262000,-500.0,0.000289,7]
[424904918,1781260262000,-500.0,0.000289,7]
[424904912,1781260262000,-500.0,0.000289,7]
[424904916,1781260262000,-500.0,0.000289,7]
[424904914,1781260262000,-500.0,0.000289,7]
[424904913,1781260262000,-500.0,0.000289,7]
[424904917,1781260262000,-500.0,0.000289,7]
[424904915,1781260262000,-500.0,0.000289,7]
[424904919,1781260262000,-500.0,0.000289,7]
[424904921,1781260262000,-500.0,0.000289,7]
[424904929,1781260262000,-500.0,0.000289,7]
[424904920,1781260262000,-500.0,0.000289,7]
[424904898,1781260262000,-500.0,0.000289,7]
[424904911,1781260262000,-500.0,0.000289,7]
[424904899,1781260262000,-500.0,0.000289,7]
[424904884,1781260262000,-500.0,0.000289,7]
[424904895,1781260262000,-500.0,0.000289,7]
[424904873,1781260262000,-500.0,0.000289,7]
[424904874,1781260262000,-500.0,0.000289,7]
[424904872,1781260262000,-500.0,0.000289,7]
[424904876,1781260262000,-500.0,0.000289,7]
[424904877,1781260262000,-500.0,0.000289,7]
[424904878,1781260262000,-500.0,0.000289,7]
[424904879,1781260262000,-500.0,0.000289,7]
[424904880,1781260262000,-500.0,0.000289,7]
[424904923,1781260262000,-500.0,0.000289,7]
[424904882,1781260262000,-500.0,0.000289,7]
[424904881,1781260262000,-500.0,0.000289,7]
[424904883,1781260262000,-500.0,0.000289,7]
[424904885,1781260262000,-500.0,0.000289,7]
[424904886,1781260262000,-500.0,0.000289,7]
[424904888,1781260262000,-500.0,0.000289,7]
[424904890,1781260262000,-500.0,0.000289,7]
[424904889,1781260262000,-500.0,0.000289,7]
[424904887,1781260262000,-500.0,0.000289,7]
[424904892,1781260262000,-500.0,0.000289,7]
[424904893,1781260262000,-500.0,0.000289,7]
[424904891,1781260262000,-500.0,0.000289,7]
[424904894,1781260262000,-500.0,0.000289,7]
[424904896,1781260262000,-500.0,0.000289,7]
[424904897,1781260262000,-500.0,0.000289,7]
[424904922,1781260262000,-500.0,0.000289,7]
[424904875,1781260262000,-500.0,0.000289,7]
[424904926,1781260262000,-500.0,0.000289,7]
[424904958,1781260262000,-500.0,0.000289,7]
[424904954,1781260262000,-500.0,0.000289,7]
[424904956,1781260262000,-500.0,0.000289,7]
[424904957,1781260262000,-500.0,0.000289,7]
[424904960,1781260262000,-500.0,0.000289,7]
[424904955,1781260262000,-198.19,0.000289,7]
[424904961,1781260262000,-500.0,0.000289,7]
[424904962,1781260262000,-500.0,0.000289,7]
[424904963,1781260262000,-500.0,0.000289,7]
[424904966,1781260262000,-500.0,0.000289,7]
[424904969,1781260262000,-500.0,0.000289,7]
[424904971,1781260262000,-500.0,0.000289,7]
[424904973,1781260262000,-500.0,0.000289,7]
[424904972,1781260262000,-500.0,0.000289,7]
[424904968,1781260262000,-500.0,0.000289,7]
[424904970,1781260262000,-500.0,0.000289,7]
[424904967,1781260262000,-500.0,0.000289,7]
[424904965,1781260262000,-500.0,0.000289,7]
[424904974,1781260262000,-500.0,0.000289,7]
[424904976,1781260262000,-500.0,0.000289,7]
[424904975,1781260262000,-500.0,0.000289,7]
[424904977,1781260262000,-500.0,0.000289,7]
[424904978,1781260262000,-500.0,0.000289,7]
[424904959,1781260262000,-500.0,0.000289,7]
[424904952,1781260262000,-500.0,0.000289,7]
[424904964,1781260262000,-500.0,0.000289,7]
[424904949,1781260262000,-500.0,0.000289,7]
[424904953,1781260262000,-500.0,0.000289,7]
[424904924,1781260262000,-500.0,0.000289,7]
[424904927,1781260262000,-500.0,0.000289,7]
[424904928,1781260262000,-500.0,0.000289,7]
[424904930,1781260262000,-500.0,0.000289,7]
[424904931,1781260262000,-500.0,0.000289,7]
[424904932,1781260262000,-500.0,0.000289,7]
[424904937,1781260262000,-500.0,0.000289,7]
[424904940,1781260262000,-500.0,0.000289,7]
[424904934,1781260262000,-500.0,0.000289,7]
[424904938,1781260262000,-500.0,0.000289,7]
[424904933,1781260262000,-500.0,0.000289,7]
[424904925,1781260262000,-500.0,0.000289,7]
[424904939,1781260262000,-500.0,0.000289,7]
[424904950,1781260262000,-500.0,0.000289,7]
[424904941,1781260262000,-500.0,0.000289,7]
[424904947,1781260262000,-500.0,0.000289,7]
[424904948,1781260262000,-500.0,0.000289,7]
[424904946,1781260262000,-500.0,0.000289,7]
[424904945,1781260262000,-500.0,0.000289,7]
[424904951,1781260262000,-500.0,0.000289,7]
[424904943,1781260262000,-500.0,0.000289,7]
[424904944,1781260262000,-500.0,0.000289,7]
[424904942,1781260262000,-500.0,0.000289,7]
[424904936,1781260262000,-500.0,0.000289,7]
[424904935,1781260262000,-500.0,0.000289,7]
[424904985,1781260263000,-421.17,0.000289,7]
[424904993,1781260263000,-151.0,0.00028997,7]
[424904991,1781260263000,-152.25,0.00028973,120]
[424904987,1781260263000,-367.0,0.000289,2]
[424904981,1781260263000,-500.0,0.000289,7]
[424904984,1781260263000,-500.0,0.000289,7]
[424904980,1781260263000,-500.0,0.000289,7]
[424904982,1781260263000,-500.0,0.000289,7]
[424904983,1781260263000,-500.0,0.000289,7]
[424904979,1781260263000,-500.0,0.000289,7]
[424904986,1781260263000,-500.0,0.000289,7]
[424904989,1781260263000,-3000.0,0.000289,3]
[424904992,1781260263000,-151.0,0.00028997,7]
[424904994,1781260263000,-2231.0,0.00029,2]
[424904988,1781260263000,-250.0,0.000289,7]
[424905005,1781260263000,-311.06851916,0.00029,2]
[424905004,1781260263000,-366.27376185,0.00029,2]
[424904998,1781260263000,-10855.73383049,0.00029,2]
[424905001,1781260263000,-3241.09457501,0.00029,2]
[424905002,1781260263000,-376736.06637289,0.00029,2]
[424904999,1781260263000,-405.61,0.00029,5]
[424905000,1781260263000,-1015.32,0.00029,2]
[424904997,1781260263000,-1139.0,0.00029,2]
[424904996,1781260263000,-872.40607876,0.00029,2]
[424904995,1781260263000,-409.0,0.00029,2]
[424905003,1781260263000,-336.67961948,0.00029,2]
[424904990,1781260263000,-168.76003865,0.00028971,2]
[424905007,1781260322000,-150.0,0.00011361,2]
[424905010,1781260376000,-150.0,0.0001102,2]
[424905011,1781260430000,-150.0,0.00010689,2]
[424905014,1781260483000,-150.0,0.00010369,2]
[424905015,1781260536000,-190.94161941,0.0001102,2]
[424905017,1781260590000,-482.6807,0.0001127,2]
[424905018,1781260643000,-250.0,0.00011453,2]
[424905019,1781260697000,-210.66,9.657e-05,2]
[424905020,1781260750000,-504.41335218,0.00010623,2]
[424905021,1781260804000,-250.0,0.00010623,2]
[424905022,1781260955000,-500.0,0.00010623,2]
[424905024,1781260956000,-951.76,0.00011125,2]
[424905023,1781260956000,-6498.94,0.00011122,2]
[424905026,1781260956000,-150.0,0.00011346,2]
[424905025,1781260956000,-166.66,0.00011155,2]
[424905029,1781260956000,-500.0,0.00011347,2]
[424905030,1781260956000,-276.71394675,0.00011347,2]
[424905028,1781260956000,-151.78363437,0.00011347,2]
[424905031,1781260956000,-500.0,0.00011347,2]
[424905032,1781260956000,-420.02211858,0.00011347,2]
[424905027,1781260956000,-384.1203003,0.00011347,2]
[424905033,1781260958000,-10000.0,0.00011348,2]
[424905034,1781260960000,-10000.0,0.00011348,2]
[424905035,1781260961000,-10000.0,0.00011348,2]
[424905036,1781260963000,-10000.0,0.00011348,2]
[424905037,1781260964000,-500.0,0.00011345,2]
[424905039,1781260964000,-500.0,0.00011345,2]
[424905038,1781260964000,-500.0,0.00011345,2]
[424905040,1781260964000,-500.0,0.00011345,2]
[424905042,1781260964000,-500.0,0.00011345,2]
[424905041,1781260964000,-500.0,0.00011345,2]
[424905044,1781260964000,-404.23419248,0.00011345,2]
[424905046,1781260964000,-500.0,0.00011345,2]
[424905045,1781260964000,-500.0,0.00011345,2]
[424905047,1781260964000,-500.0,0.00011345,2]
[424905043,1781260964000,-500.0,0.00011345,2]
[424905048,1781260965000,-4595.76580752,0.00011348,2]
[424905052,1781260975000,-500.0,0.00011345,2]
[424905050,1781260975000,-500.0,0.00011345,2]
[424905053,1781260975000,-500.0,0.00011345,2]
[424905049,1781260975000,-1000.0,0.00011281,2]
[424905054,1781260975000,-500.0,0.00011345,2]
[424905055,1781260975000,-500.0,0.00011345,2]